bitfinex/quotes_ETHUSD_20220113
["timestamp","ask_amount","ask_price","bid_price","bid_amount"]
[1642037414076,0.71804454,3347.6,3347.2,0.3732936]
[1642037414278,0.71804454,3347.6,3347.3,2.46152725]
[1642037414477,0.71804454,3347.6,3347.3,0.76152725]
[1642037414676,0.71804454,3347.6,3347.4,0.7757432]
[1642037414876,0.71804454,3347.6,3347.4,0.80980024]
[1642037415076,0.71804454,3347.6,3347.4,3.10980024]
[1642037415276,0.71804454,3347.9,3347.5,5.5]
[1642037415522,0.71804454,3347.9,3347.6,1.56207523]
[1642037415724,0.71804454,3347.9,3347.7,0.33927914]
[1642037415725,0.7242972,3347.9,3347.7,0.33927914]
[1642037416124,0.7242972,3347.9,3347.8,5.6991741]
[1642037416324,0.7242972,3347.9,3347.8,4.81390188]
[1642037416526,0.00625266,3347.9,3347.8,1.46472778]
[1642037416929,0.00625266,3347.9,3347.8,0.46472778]
[1642037417327,0.00625266,3347.9,3347.8,5.03097664]
[1642037417730,0.00625266,3347.9,3347.8,6.03097664]
[1642037417927,0.00625266,3347.9,3347.8,3.33097664]
[1642037418328,0.00625266,3347.9,3347.8,6.38097664]
[1642037418830,2.98172443,3348.9,3348.0,0.05566121]
[1642037419027,2.98172443,3348.9,3348.1,0.726]
[1642037419268,0.00511581,3348.8,3348.1,0.76150722]
[1642037419474,0.00511581,3348.8,3348.0,3.00416396]
[1642037419475,0.00511581,3348.8,3348.0,1.06567118]
[1642037419674,0.00454739,3348.7,3348.1,0.46043495]
[1642037419873,0.00454739,3348.7,3348.2,0.03867532]
[1642037420074,2.58947563,3349.1,3347.9,0.74641]
[1642037420075,0.0126234,3348.9,3348.6,0.7757432]
[1642037420477,0.1194,3348.8,3348.6,0.7757432]
[1642037420878,2.70454739,3348.7,3348.6,0.7757432]
[1642037421078,2.82394739,3348.7,3348.6,0.7757432]
[1642037422479,2.82394739,3348.7,3348.6,1.0757432]
[1642037423339,0.12394739,3348.7,3347.9,0.0365688]
[1642037423539,0.1194,3348.6,3347.7,0.03124045]
[1642037423739,0.12337896,3348.6,3347.7,0.03124045]
[1642037423938,0.00341054,3348.5,3347.7,0.03124045]
[1642037424445,0.00284212,3348.4,3347.7,0.03124045]
[1642037424846,0.00227369,3348.3,3347.7,0.03124045]
[1642037425247,0.00170527,3348.2,3347.7,0.03124045]
[1642037425748,0.00113684,3348.1,3347.7,0.03124045]
[1642037426148,0.00227369,3348.3,3347.7,0.03124045]
[1642037426348,0.00227369,3348.3,3347.6,0.3]
[1642037426549,0.00170527,3348.2,3347.5,1.3390024]
[1642037426773,0.00170527,3348.2,3347.7,0.00113685]
[1642037426972,0.00113684,3348.1,3347.7,0.03542881]
[1642037427174,0.00113684,3348.1,3347.7,0.63656566]
[1642037427378,0.00227369,3348.3,3347.8,0.03983073]
[1642037427774,0.00170527,3348.2,3347.8,0.03983073]
[1642037428174,0.00113684,3348.1,3347.8,0.03983073]
[1642037428575,3.4474234,3348.9,3347.8,0.03983073]
[1642037428576,0.00511581,3348.8,3347.8,0.03983073]
[1642037428775,2.92529863,3348.7,3347.8,0.03983073]
[1642037428979,2.92984602,3348.7,3347.8,0.03983073]
[1642037429176,0.00397896,3348.6,3347.7,0.30113685]
[1642037429375,0.12337896,3348.6,3347.7,0.00113685]
[1642037429578,0.00341054,3348.5,3347.7,0.00113685]
[1642037429778,0.00341054,3348.5,3347.6,0.00170527]
[1642037430076,0.00284212,3348.4,3347.6,0.00170527]
[1642037430530,0.00227369,3348.3,3347.6,0.00170527]
[1642037431033,0.00170527,3348.2,3347.6,0.00170527]
[1642037431233,0.00170527,3348.2,3347.6,0.74817527]
[1642037431438,0.00113684,3348.1,3347.7,0.63583015]
[1642037431635,0.00113684,3348.1,3347.8,0.03916477]
[1642037431834,0.00397896,3348.6,3347.8,0.03916477]
[1642037432236,0.00341054,3348.5,3347.8,0.03916477]
[1642037432639,0.00284212,3348.4,3347.8,0.03916477]
[1642037433037,0.00227369,3348.3,3347.8,0.03916477]
[1642037433440,2.92529863,3348.7,3347.8,0.78560477]
[1642037433441,0.00170527,3348.2,3347.8,0.78560477]
[1642037433739,0.00113684,3348.1,3347.8,0.78560477]
[1642037434173,2.56488244,3348.6,3347.8,0.78560477]
[1642037434573,0.00341054,3348.5,3347.8,0.78560477]
[1642037434772,0.00341054,3348.5,3347.9,0.7464]
[1642037435075,0.00284212,3348.4,3347.9,0.33373229]
[1642037435274,0.00284212,3348.4,3347.9,0.3]
[1642037435473,0.00227369,3348.3,3347.8,0.03622043]
[1642037435673,0.00227369,3348.3,3347.8,1.03622043]
[1642037435871,0.00170527,3348.2,3347.8,1.03622043]
[1642037436273,0.00113684,3348.1,3347.8,1.03622043]
[1642037436472,0.00113684,3348.1,3348.0,0.74637]
[1642037436674,1.5366219,3348.8,3348.1,0.03589416]
[1642037436876,0.71617108,3349.0,3348.1,0.03589416]
[1642037437075,0.71617108,3349.0,3348.1,0.33589416]
[1642037437276,0.00511581,3348.8,3348.1,0.33589416]
[1642037437680,0.00454739,3348.7,3348.1,0.33589416]
[1642037438133,0.00397896,3348.6,3348.1,0.33589416]
[1642037438534,0.00341054,3348.5,3348.1,0.33589416]
[1642037438934,0.00284212,3348.4,3348.1,0.33589416]
[1642037439340,0.00227369,3348.3,3348.1,0.33589416]
[1642037439741,0.00170527,3348.2,3348.1,0.63589416]
[1642037440442,0.1194,3349.3,3348.1,1.06189416]
[1642037440642,0.71617108,3349.4,3348.2,17.46]
[1642037440843,0.00341054,3348.8,3348.3,17.886]
[1642037441045,0.00341054,3348.8,3348.4,17.46]
[1642037441242,0.00284212,3348.7,3348.5,0.426]
[1642037441442,1.16506907,3349.6,3348.6,5.1]
[1642037441684,3.8410364,3349.7,3348.9,0.74619]
[1642037441876,0.00341054,3349.3,3348.9,1.08490785]
[1642037442075,0.00341054,3349.3,3349.0,0.3]
[1642037442275,0.00284211,3349.2,3349.0,0.33997563]
[1642037442677,0.00227369,3349.1,3349.0,0.33997563]
[1642037443678,0.00227369,3349.1,3348.9,0.3]
[1642037443880,0.00227369,3349.1,3348.8,0.33947814]
[1642037444079,0.00170527,3349.0,3348.8,0.33947814]
[1642037444578,0.00113684,3348.9,3348.8,0.33947814]
[1642037445823,0.00113684,3348.9,3348.8,0.03947814]
[1642037446022,0.00113684,3348.9,3348.8,0.3]
[1642037446222,0.00113684,3348.9,3348.7,0.3]
[1642037446422,1.3846931,3348.8,3348.6,1.22825999]
[1642037446626,1.3846931,3348.8,3348.6,0.92825999]
[1642037446825,1.3846931,3348.8,3348.2,1.2043]
[1642037446826,1.33565869,3348.4,3348.2,1.2043]
[1642037447026,1.33565869,3348.4,3347.8,0.92577925]
[1642037447226,1.33565869,3348.4,3348.3,0.0022737]
[1642037447426,1.33565869,3348.4,3347.9,0.00454739]
[1642037447626,1.33565869,3348.4,3347.6,0.00625266]
[1642037447826,1.33565869,3348.4,3347.6,0.75271266]
[1642037448027,1.33565869,3348.4,3347.7,0.03118404]
[1642037448224,1.33565869,3348.4,3347.7,0.03686828]
[1642037448428,1.33565869,3348.4,3347.8,0.00511582]
[1642037449379,1.33565869,3348.4,3347.6,0.00625266]
[1642037449582,1.23565869,3348.4,3347.6,0.00625266]
[1642037449979,1.23565869,3348.4,3347.6,0.30625266]
[1642037450180,1.23565869,3348.4,3347.6,0.00625266]
[1642037450381,1.23565869,3348.4,3347.7,0.03864324]
[1642037450583,1.5040931,3348.8,3347.7,0.332959]
[1642037450780,1.5040931,3348.8,3347.8,0.00511582]
[1642037451381,1.5040931,3348.8,3347.8,0.30511582]
[1642037451579,1.5040931,3348.8,3347.8,0.74643]
[1642037451879,2.90558968,3348.8,3347.9,0.00454739]
[1642037452079,2.56080162,3348.7,3347.9,0.00454739]
[1642037452683,2.56080162,3348.7,3347.8,3.12748009]
[1642037452921,2.56080162,3348.7,3347.9,0.04225033]
[1642037453323,2.56080162,3348.7,3348.0,0.75035897]
[1642037453521,2.56080162,3348.7,3348.1,0.63750901]
[1642037453723,2.56080162,3348.7,3348.1,0.64091956]
[1642037453931,0.00113684,3348.9,3348.2,0.00284212]
[1642037455126,1.44433717,3348.7,3348.2,0.00284212]
[1642037456776,2.56065886,3348.6,3348.2,0.00284212]
[1642037459575,5.56065886,3348.6,3348.2,0.00284212]
[1642037461025,2.56065886,3348.5,3348.2,0.00284212]
[1642037461822,2.56065886,3348.5,3348.1,0.30341055]
[1642037462022,2.56065886,3348.5,3348.2,0.00284212]
[1642037462823,2.56065886,3348.5,3348.1,0.30341055]
[1642037463024,2.56065886,3348.5,3348.2,0.00284212]
[1642037463824,2.56065886,3348.5,3348.1,0.30341055]
[1642037464025,2.56065886,3348.5,3348.2,0.00284212]
[1642037464683,2.56065886,3348.5,3348.1,0.03647219]
[1642037464877,2.56065886,3348.5,3348.2,0.00284212]
[1642037464878,4.70465749,3348.5,3348.2,0.00284212]
[1642037465078,0.1194,3348.4,3348.2,0.00284212]
[1642037465275,0.1194,3348.4,3347.6,0.00625266]
[1642037465881,1.10510135,3348.1,3347.6,0.00625266]
[1642037466086,3.84203173,3348.3,3347.6,0.00625266]
[1642037466882,2.56065886,3348.3,3347.6,0.00625266]
[1642037467082,2.56065886,3348.2,3347.4,1.00738951]
[1642037467282,2.56065886,3348.2,3347.4,1.03757586]
[1642037467483,2.56065886,3348.2,3347.5,0.00682109]
[1642037468126,2.56065886,3348.2,3347.5,0.75330109]
[1642037468325,2.56065886,3348.4,3347.6,0.3]
[1642037468526,0.1194,3348.3,3347.6,0.30625266]
[1642037468723,0.1194,3348.3,3347.7,0.00568424]
[1642037469124,0.1194,3348.3,3347.6,0.00625266]
[1642037470329,2.56065886,3348.4,3347.6,0.00625266]
[1642037470330,2.46065886,3348.2,3347.6,0.00625266]
[1642037471430,3.56150286,3348.2,3347.6,0.00625266]
[1642037471893,2.46065886,3348.2,3347.6,0.00625266]
[1642037472094,1.47232059,3348.4,3347.5,0.00682109]
[1642037472291,0.1194,3348.3,3347.5,0.00682109]
[1642037472693,1.47232059,3348.4,3347.4,0.30738951]
[1642037472891,1.47232059,3348.4,3347.5,0.00682109]
[1642037474393,2.21891209,3348.4,3347.5,0.00682109]
[1642037474693,0.1194,3348.3,3347.3,0.00795793]
[1642037475294,0.1194,3348.3,3347.1,1.07090971]
[1642037475519,0.00511581,3348.2,3347.1,2.41750971]
[1642037475720,0.1194,3348.1,3347.1,3.41750971]
[1642037475920,0.12394738,3348.1,3347.1,3.41750971]
[1642037476121,0.00397896,3348.0,3347.2,0.0388241]
[1642037476528,0.00341054,3347.9,3347.2,0.0388241]
[1642037476925,0.00284211,3347.8,3347.2,0.0388241]
[1642037477323,0.00227369,3347.7,3347.2,0.7853841]
[1642037477523,0.00227369,3347.7,3347.2,1.07661725]
[1642037477724,0.00170527,3347.6,3347.2,1.07661725]
[1642037478223,0.00113684,3347.5,3347.2,1.07661725]
[1642037478724,1.50537184,3347.9,3347.2,0.3]
[1642037479181,0.00284211,3347.8,3347.1,2.67090971]
[1642037479572,0.00227369,3347.7,3347.1,2.67090971]
[1642037479772,0.00227369,3347.7,3347.1,3.41745971]
[1642037479972,0.00170527,3347.6,3347.1,3.41745971]
[1642037480373,0.00113684,3347.5,3347.1,3.41745971]
[1642037480773,0.00284211,3347.8,3347.1,3.41745971]
[1642037480974,0.00284211,3347.8,3347.2,0.74651]
[1642037481173,0.00227369,3347.7,3347.2,0.74651]
[1642037481374,0.00227369,3347.7,3347.2,1.04651]
[1642037481680,0.00170527,3347.6,3347.2,1.04651]
[1642037481875,0.00170527,3347.6,3347.2,1.08602489]
[1642037482073,0.00113684,3347.5,3347.2,1.08602489]
[1642037483840,0.00113684,3347.5,3347.2,0.3]
[1642037484043,0.00113684,3347.5,3347.3,0.3]
[1642037484250,0.00113684,3347.5,3347.2,0.3]
[1642037488475,0.00113684,3347.5,3347.3,1.78109668]
[1642037488875,0.00113684,3347.5,3347.0,3.75530603]
[1642037489077,0.00113684,3347.5,3346.9,1.94753751]
[1642037489275,0.00113684,3347.5,3347.1,0.00113685]
[1642037491321,0.00113684,3347.5,3347.0,0.00170527]
[1642037491521,0.00113684,3347.5,3347.0,1.00170527]
[1642037491721,0.00113684,3347.5,3347.1,1.82579982]
[1642037492124,0.00113684,3347.5,3347.1,3.42579982]
[1642037492523,0.00113684,3347.5,3347.1,2.42579982]
[1642037492924,0.00113684,3347.5,3347.1,3.42579982]
[1642037493122,0.00113684,3347.5,3347.1,2.42579982]
[1642037493724,0.00113684,3347.5,3347.1,0.3]
[1642037493927,0.00113684,3347.5,3347.0,2.81512061]
[1642037494200,0.00113684,3347.5,3347.1,1.0]
[1642037494489,0.00113684,3347.5,3347.2,1.83714453]
[1642037495794,0.00113684,3347.5,3347.3,0.3]
[1642037496093,0.00113684,3347.5,3347.4,5.58181818]
[1642037496492,0.00113684,3347.5,3347.4,3.18181818]
[1642037496897,0.00113684,3347.5,3347.4,2.18181818]
[1642037497097,0.00113684,3347.5,3347.4,3.18181818]
[1642037497495,0.00113684,3347.5,3347.4,2.60781818]
[1642037497698,0.00113684,3347.5,3347.4,3.60781818]
[1642037499535,0.00113684,3347.5,3347.4,6.65781818]
[1642037499736,3.00113684,3347.5,3347.4,6.65781818]
[1642037499937,3.00113684,3347.5,3347.4,3.60781818]
[1642037501138,3.00113684,3347.5,3347.4,1.726]
[1642037501535,3.00113684,3347.5,3347.4,0.726]
[1642037501976,3.00113684,3347.5,3347.1,2.1383]
[1642037502175,3.00113684,3347.5,3347.1,0.6]
[1642037502375,3.00113684,3347.5,3347.0,0.30170527]
[1642037502578,4.47892112,3347.5,3347.0,0.00170527]
[1642037502976,4.47892112,3347.5,3346.6,1.1332]
[1642037502977,1.18610589,3347.2,3346.7,0.00341054]
[1642037503579,1.18610589,3347.2,3346.5,0.00454739]
[1642037503780,0.1195,3347.1,3346.4,0.00511581]
[1642037503982,0.7467974,3347.1,3346.3,2.00568424]
[1642037504382,0.7467974,3347.1,3346.4,0.00511581]
[1642037504985,0.7467974,3347.1,3346.4,1.00511581]
[1642037505185,1.39960327,3346.9,3346.4,1.00511581]
[1642037505437,1.39960327,3346.9,3346.5,0.00454739]
[1642037505630,2.14642747,3346.9,3346.5,0.00454739]
[1642037505932,2.14642747,3346.9,3346.0,1.6656]
[1642037505933,2.14642747,3346.9,3346.4,0.00511581]
[1642037506133,2.26592747,3346.9,3346.4,0.00511581]
[1642037506331,2.26592747,3346.9,3346.1,0.00682108]
[1642037507030,1.11275323,3346.3,3346.1,0.00682108]
[1642037507232,1.85976073,3346.3,3346.1,0.00682108]
[1642037507431,1.85976073,3346.3,3345.9,0.00795793]
[1642037508033,1.85976073,3346.3,3345.4,0.01080005]
[1642037508332,1.97926073,3346.3,3345.4,0.01080005]
[1642037509179,4.1618786,3346.3,3345.4,0.01080005]
[1642037509478,0.7472061,3345.9,3345.4,0.01080005]
[1642037509681,0.7472061,3345.9,3344.7,0.01477901]
[1642037509682,1.2553892,3345.6,3344.7,0.01477901]
[1642037509882,1.2553892,3345.6,3344.3,8.62830215]
[1642037509883,1.2553892,3345.6,3345.5,0.01023163]
[1642037510082,1.2553892,3345.6,3344.5,0.01591586]
[1642037510283,1.54553759,3345.4,3344.4,0.01648428]
[1642037511081,1.54553759,3345.4,3344.4,1.05006605]
[1642037511486,0.7471491,3345.3,3344.5,0.01591586]
[1642037511684,1.6701491,3345.3,3344.5,0.01591586]
[1642037511884,1.6701491,3345.3,3344.4,0.01648428]
[1642037512491,3.16347703,3345.3,3344.4,0.01648428]
[1642037512929,1.49827766,3344.8,3344.4,0.01648428]
[1642037513128,1.49827766,3344.8,3344.4,1.01648428]
[1642037513322,0.1195,3345.2,3344.4,1.01648428]
[1642037513523,1.16315299,3345.0,3344.5,0.01591586]
[1642037514327,1.4947244,3344.8,3344.5,0.01591586]
[1642037514527,1.4471469,3344.9,3344.5,0.01591586]
[1642037514729,2.1945007,3344.9,3344.5,0.01591586]
[1642037515129,2.1945007,3344.9,3344.4,0.01648428]
[1642037515332,2.21540656,3344.8,3344.4,0.01648428]
[1642037515532,0.1195,3344.7,3344.4,0.01648428]
[1642037515734,0.9702,3344.7,3344.4,0.01648428]
[1642037515931,0.9702,3344.7,3343.4,0.0033576]
[1642037515932,0.9702,3344.7,3343.7,0.02046325]
[1642037516131,2.19509594,3344.6,3343.5,0.02160009]
[1642037516331,1.52708171,3344.3,3343.5,0.02160009]
[1642037516674,1.66832991,3344.2,3343.5,0.02160009]
[1642037516882,1.66832991,3344.2,3343.3,0.42493979]
[1642037517280,0.00341054,3344.1,3343.3,0.72493979]
[1642037517481,0.00341054,3344.1,3343.3,1.02493979]
[1642037517482,0.1196,3344.0,3343.3,1.02493979]
[1642037517686,0.12244211,3344.0,3343.3,0.42493979]
[1642037517883,0.00227369,3343.9,3343.3,0.42493979]
[1642037518285,0.00170527,3343.8,3343.3,0.42493979]
[1642037518684,0.00113684,3343.7,3343.3,0.42493979]
[1642037519082,0.00341054,3344.1,3343.3,0.42493979]
[1642037519282,0.00341054,3344.1,3343.3,0.37493979]
[1642037519484,3.0,3343.7,3343.3,0.37493979]
[1642037520531,3.0,3343.7,3343.3,3.979e-05]
[1642037520730,5.65,3343.6,3343.3,3.979e-05]
[1642037520936,5.7696,3343.6,3343.3,3.979e-05]
[1642037521135,0.1196,3343.6,3343.3,3.979e-05]
[1642037522134,3.0,3343.7,3343.3,3.979e-05]
[1642037523335,3.0,3343.7,3342.6,0.78480684]
[1642037523537,3.0,3343.7,3342.6,1.33480684]
[1642037523734,3.35,3343.6,3342.1,7.73496]
[1642037523936,3.35,3343.6,3341.7,3.6747]
[1642037523937,5.91284827,3343.4,3341.7,3.6747]
[1642037524175,5.91284827,3343.4,3342.4,0.00170527]
[1642037524375,0.12301054,3343.3,3342.4,0.00170527]
[1642037524578,0.12301054,3343.3,3341.8,0.95170527]
[1642037524579,0.74786,3342.9,3341.8,0.95170527]
[1642037524975,0.74786,3342.9,3341.9,0.00284212]
[1642037524976,0.00227369,3342.8,3341.9,0.00284212]
[1642037525176,1.41716464,3342.7,3341.9,0.00284212]
[1642037525376,0.00170527,3342.7,3341.9,0.00284212]
[1642037525577,0.00113684,3342.6,3341.9,0.00284212]
[1642037525780,0.00113684,3342.6,3341.8,2.50454739]
[1642037525981,2.00397896,3343.1,3341.8,0.95170527]
[1642037526282,2.00397896,3343.1,3341.4,7.73788827]
[1642037526283,0.00625266,3343.0,3341.4,7.73788827]
[1642037526481,0.1196,3342.9,3341.4,7.73788827]
[1642037526678,0.12528423,3342.9,3341.5,0.00227369]
[1642037526886,1.39034338,3342.4,3341.5,0.00227369]
[1642037527082,1.39034338,3342.4,3341.4,3.8841]
[1642037527283,0.00454738,3342.3,3341.0,0.2]
[1642037527684,0.00397896,3342.2,3341.0,0.1072737]
[1642037527932,0.00625266,3342.2,3341.0,0.1072737]
[1642037528126,0.00568424,3342.1,3341.0,0.9572737]
[1642037528526,1.52695738,3341.7,3340.9,24.55369177]
[1642037528727,0.00511581,3342.0,3340.9,24.55369177]
[1642037528930,0.00284212,3341.6,3340.9,24.55369177]
[1642037529128,0.00454739,3341.9,3340.9,1.44249177]
[1642037529329,0.0022737,3341.5,3340.9,1.44249177]
[1642037529528,0.00397897,3341.8,3340.9,1.44249177]
[1642037529730,0.00170527,3341.4,3340.9,1.44249177]
[1642037529929,3.0,3341.6,3340.9,1.44249177]
[1642037530130,0.00113685,3341.3,3340.9,1.44249177]
[1642037530330,1.09247,3341.3,3340.9,1.44249177]
[1642037530533,0.0022737,3341.5,3340.7,1.39249177]
[1642037530534,2.0022737,3341.5,3340.7,1.39249177]
[1642037530730,0.1197,3341.2,3340.5,0.01496773]
[1642037530932,0.12140527,3341.4,3340.8,0.00170527]
[1642037531130,0.00170527,3341.4,3340.8,0.00170527]
[1642037531437,0.00113685,3341.3,3340.8,0.00170527]
[1642037531884,0.00170527,3341.4,3340.8,0.00170527]
[1642037532083,0.00170527,3341.4,3340.8,2.00170527]
[1642037532283,0.00113685,3341.3,3340.9,0.3]
[1642037532483,0.00113685,3341.3,3340.9,0.30113684]
[1642037532685,0.0022737,3341.5,3340.9,17.76113684]
[1642037532982,0.00170527,3341.4,3340.9,0.30113684]
[1642037533182,0.00170527,3341.4,3340.9,0.25113684]
[1642037533383,0.00113685,3341.3,3340.9,0.25113684]
[1642037533581,3.0,3341.6,3340.9,0.25113684]
[1642037533782,3.0,3341.6,3341.0,0.00170527]
[1642037533986,0.00113685,3341.5,3341.0,2.0722935]
[1642037534186,0.00113685,3341.5,3341.0,2.3722935]
[1642037534383,0.00113685,3341.5,3341.1,0.00113685]
[1642037535188,3.0,3341.6,3341.2,6.8]
[1642037535459,3.0,3341.6,3341.3,2.21168649]
[1642037535647,0.25789997,3343.0,3341.4,7.1]
[1642037535849,0.25789997,3343.0,3341.5,2.21558988]
[1642037536048,0.00511581,3342.4,3341.5,3.81558988]
[1642037536449,0.00454738,3342.3,3341.5,3.81558988]
[1642037536850,0.00397896,3342.2,3341.5,3.81558988]
[1642037537250,0.00341054,3342.1,3341.5,3.81558988]
[1642037537449,0.00341054,3342.1,3341.5,1.6]
[1642037537652,0.00284211,3342.0,3341.5,0.6]
[1642037537850,0.00284211,3342.0,3341.4,1.6]
[1642037538051,0.00227369,3341.9,3341.4,1.6]
[1642037538252,0.00227369,3341.9,3341.4,2.90710145]
[1642037538450,0.00170527,3341.8,3341.4,2.90710145]
[1642037538851,0.1197,3342.8,3341.5,7.1]
[1642037539051,0.1196,3342.9,3341.6,1.0308915]
[1642037539294,0.1196,3342.9,3341.7,0.3]
[1642037539295,0.00568424,3342.7,3341.7,0.3]
[1642037539693,0.00511581,3342.6,3341.7,0.3]
[1642037539895,0.00511581,3342.6,3341.5,0.00113685]
[1642037540096,0.12414739,3342.5,3341.5,0.00113685]
[1642037540295,0.00454739,3342.5,3341.5,0.00113685]
[1642037540496,0.00397897,3342.4,3341.5,0.00113685]
[1642037540896,0.00341054,3342.3,3341.5,0.00113685]
[1642037541096,0.00341054,3342.3,3341.6,0.7477]
[1642037541399,0.00284212,3342.2,3341.5,1.00113685]
[1642037541597,0.00284212,3342.2,3341.5,0.00113685]
[1642037541802,0.0022737,3342.1,3341.5,1.00113685]
[1642037542197,3.0,3342.6,3341.5,0.00113685]
[1642037542198,0.00170527,3342.0,3341.5,0.00113685]
[1642037542499,0.00170527,3342.0,3341.5,1.74887685]
[1642037542698,0.00113685,3341.9,3341.5,19.58273965]
[1642037542937,3.0,3342.6,3341.6,4.75]
[1642037543127,3.0,3342.6,3341.7,1.3]
[1642037543330,0.00341054,3342.5,3341.7,1.30113685]
[1642037543727,0.00284212,3342.4,3341.7,1.30113685]
[1642037544128,0.00227369,3342.3,3341.7,0.30113685]
[1642037544330,0.00227369,3342.3,3341.7,0.00113685]
[1642037544528,0.00170527,3342.2,3341.7,0.00113685]
[1642037544932,0.00113685,3342.1,3341.7,0.00113685]
[1642037545132,0.00113685,3342.1,3341.6,0.00170527]
[1642037546537,0.00382485,3342.1,3341.6,0.00170527]
[1642037551431,0.002683,3342.0,3341.6,0.00170527]
[1642037551634,0.002683,3342.0,3341.6,0.37559487]
[1642037552039,0.002683,3342.0,3341.7,0.00113685]
[1642037552435,0.002683,3342.0,3341.6,0.00170527]
[1642037553238,0.002683,3342.0,3341.6,0.37561727]
[1642037553637,0.002683,3342.0,3341.7,0.00113685]
[1642037555377,0.002683,3342.0,3341.7,1.17487405]
[1642037555580,0.002683,3342.0,3341.8,0.3]
[1642037556177,0.002683,3342.0,3341.8,0.33258127]
[1642037556377,0.002683,3342.0,3341.8,0.3]
[1642037559736,0.002683,3342.0,3341.8,0.726]
[1642037559935,6.9806,3343.4,3342.0,7.1]
[1642037560133,6.9806,3343.4,3342.6,0.3737771]
[1642037560333,3.1001,3343.4,3342.6,0.7997771]
[1642037560537,3.1001,3343.4,3342.6,1.3997771]
[1642037560935,1.47382433,3343.7,3342.6,1.3997771]
[1642037561332,0.00909477,3343.7,3342.6,1.3997771]
[1642037562181,0.00909477,3343.7,3342.7,2.70131418]
[1642037562384,0.00909477,3343.7,3342.9,0.3737473]
[1642037562581,0.00909477,3343.7,3343.0,0.3]
[1642037563082,0.00909477,3343.7,3343.0,0.25]
[1642037563684,0.00909477,3343.7,3342.8,1.726]
[1642037563883,0.1196,3343.6,3342.8,1.726]
[1642037564084,2.68401968,3343.6,3342.8,0.726]
[1642037564284,0.00795793,3343.5,3342.8,0.726]
[1642037564483,0.1196,3343.4,3342.8,0.726]
[1642037564684,0.1269895,3343.4,3342.8,1.026]
[1642037564886,0.00682108,3343.3,3342.8,1.026]
[1642037565436,0.1196,3343.5,3342.8,1.026]
[1642037565437,0.00625266,3343.2,3342.8,1.026]
[1642037565831,0.00568423,3343.1,3342.8,1.026]
[1642037566231,0.00511581,3343.0,3342.8,1.026]
[1642037566634,0.00454738,3342.9,3342.8,4.899758]
[1642037566837,0.00454738,3342.9,3342.8,6.71643927]
[1642037568139,0.00454738,3342.9,3342.8,7.71643927]
[1642037568737,0.1196,3343.8,3342.9,7.1]
[1642037568937,0.1196,3343.8,3343.1,0.373731]
[1642037569180,0.00454739,3343.7,3343.1,0.373731]
[1642037569380,0.00454739,3343.7,3343.1,2.18468295]
[1642037569580,0.1196,3343.9,3343.1,0.673731]
[1642037569780,0.1196,3343.9,3343.2,0.00227369]
[1642037569983,0.00113685,3343.8,3343.2,0.00227369]
[1642037570585,1.3774577,3343.8,3343.2,0.00227369]
[1642037570985,3.94187745,3343.8,3343.2,0.00227369]
[1642037571890,1.3774577,3343.8,3343.2,0.00227369]
[1642037572087,1.3774577,3343.8,3343.1,0.00284212]
[1642037572942,0.00113685,3343.8,3343.1,0.00284212]
[1642037573143,0.00113685,3343.8,3343.1,1.79232334]
[1642037573342,0.00113685,3343.8,3343.1,2.46604904]
[1642037573541,0.00113685,3343.8,3343.2,0.00227369]
[1642037573941,1.53963324,3343.6,3343.2,0.00227369]
[1642037574345,0.00113685,3343.8,3343.2,0.30227369]
[1642037574646,4.29424628,3343.9,3343.5,0.3736944]
[1642037574647,0.24538696,3343.9,3343.5,0.3736944]
[1642037574843,8.63758801,3344.6,3343.7,7.1]
[1642037574844,3.84658801,3344.6,3343.7,7.1]
[1642037575047,3.84658801,3344.6,3343.8,20.0056]
[1642037575244,0.00341054,3344.4,3343.8,21.3056]
[1642037575444,0.00341054,3344.4,3343.9,18.34881803]
[1642037575642,3.84658801,3344.6,3343.9,18.34881803]
[1642037575643,0.00284211,3344.3,3344.0,0.5456]
[1642037576044,0.00227369,3344.2,3344.0,1.5456]
[1642037576243,0.00227369,3344.2,3344.0,1.426]
[1642037576446,0.00170527,3344.1,3344.0,0.426]
[1642037576676,0.00170527,3344.1,3344.0,1.426]
[1642037576881,0.00170527,3344.1,3344.0,0.426]
[1642037577081,0.00170527,3344.1,3344.0,1.426]
[1642037577284,0.00170527,3344.1,3344.0,0.426]
[1642037577481,0.00170527,3344.1,3344.0,1.426]
[1642037577685,0.00170527,3344.1,3344.0,0.426]
[1642037578484,0.00170527,3344.1,3344.0,4.726]
[1642037578888,0.00170527,3344.1,3344.0,7.54424903]
[1642037579288,0.00170527,3344.1,3344.0,23.186]
[1642037579686,0.00170527,3344.1,3344.0,1.426]
[1642037580086,0.00170527,3344.1,3344.0,0.426]
[1642037580931,0.00170527,3344.1,3344.0,0.36087595]
[1642037581426,0.00170527,3344.1,3344.0,4.96087595]
[1642037581625,0.00170527,3344.1,3344.0,5.96087595]
[1642037582429,0.00170527,3344.1,3344.0,1.36087595]
[1642037582629,0.00170527,3344.1,3344.0,0.36087595]
[1642037583430,0.00170527,3344.1,3344.0,4.86087595]
[1642037583830,0.00170527,3344.1,3344.0,7.80831868]
[1642037584280,2.56389777,3344.9,3344.1,6.8]
[1642037584480,2.56389777,3344.9,3344.2,1.85628019]
[1642037584680,0.00397896,3344.8,3344.3,0.3736142]
[1642037585082,0.00341054,3344.7,3344.3,0.3736142]
[1642037585282,0.00341054,3344.7,3344.2,0.3]
[1642037585485,0.00284211,3344.6,3344.0,0.66087595]
[1642037585882,0.00227369,3344.5,3344.1,1.90359021]
[1642037586083,0.00227369,3344.5,3344.1,1.0]
[1642037586283,0.00170527,3344.4,3344.1,1.0]
[1642037586587,0.00113684,3344.3,3344.0,2.03452535]
[1642037586786,0.00113684,3344.3,3344.1,1.85501193]
[1642037586989,0.12518423,3345.1,3344.1,2.60220193]
[1642037587186,0.00568423,3345.1,3344.2,1.1195]
[1642037587386,1.226,3345.2,3344.3,1.87231503]
[1642037587387,0.00511581,3345.0,3344.3,1.87231503]
[1642037587787,0.00454738,3344.9,3344.4,0.373612]
[1642037588034,0.00454738,3344.9,3344.3,1.87231503]
[1642037588035,0.00454738,3344.9,3344.5,0.3]
[1642037588333,0.00568423,3345.1,3344.3,1.3]
[1642037588533,0.00568423,3345.1,3344.3,0.3]
[1642037588734,0.00511581,3345.0,3344.1,1.3]
[1642037588931,1.5514274,3344.6,3344.1,1.3]
[1642037589334,0.00227369,3344.5,3344.1,1.3]
[1642037589532,0.00227369,3344.5,3344.1,1.0]
[1642037589734,0.00170527,3344.4,3344.1,1.0]
[1642037589932,0.00170527,3344.4,3344.1,0.3736361]
[1642037590135,0.00113684,3344.3,3344.1,1.3736361]